fUST/lending_fUST_20260530
["ID","MTS","AMOUNT","RATE_DAILY","PERIOD"]
[423469228,1780148928000,-5000.0,5.952e-05,2]
[423469227,1780148928000,-62.6100667,5.952e-05,2]
[423469225,1780148928000,-500.0,5.951e-05,2]
[423469226,1780148928000,-515.23662043,5.951e-05,2]
[423469223,1780148928000,-2722.15331287,5.852e-05,2]
[423469224,1780148928000,-1200.0,5.938e-05,2]
[423469232,1780148929000,-5000.0,5.952e-05,2]
[423469231,1780148929000,-5000.0,5.952e-05,2]
[423469230,1780148929000,-5000.0,5.952e-05,2]
[423469233,1780148930000,-5000.0,5.952e-05,2]
[423469235,1780148930000,-5000.0,5.952e-05,2]
[423469234,1780148930000,-5000.0,5.952e-05,2]
[423469238,1780148931000,-5000.0,5.952e-05,2]
[423469237,1780148931000,-5000.0,5.952e-05,2]
[423469236,1780148931000,-5000.0,5.952e-05,2]
[423469240,1780148932000,-5000.0,5.952e-05,2]
[423469239,1780148932000,-5000.0,5.952e-05,2]
[423469243,1780148933000,-5000.0,5.952e-05,2]
[423469242,1780148933000,-5000.0,5.952e-05,2]
[423469241,1780148933000,-5000.0,5.952e-05,2]
[423469244,1780148934000,-5000.0,5.952e-05,2]
[423469246,1780148934000,-5000.0,5.952e-05,2]
[423469245,1780148934000,-5000.0,5.952e-05,2]
[423469247,1780148935000,-5000.0,5.952e-05,2]
[423469248,1780148935000,-5000.0,5.952e-05,2]
[423469250,1780148936000,-5000.0,5.952e-05,2]
[423469249,1780148936000,-5000.0,5.952e-05,2]
[423469251,1780148936000,-5000.0,5.952e-05,2]
[423469254,1780148937000,-5000.0,5.952e-05,2]
[423469253,1780148937000,-5000.0,5.952e-05,2]
[423469252,1780148937000,-5000.0,5.952e-05,2]
[423469255,1780148938000,-5000.0,5.952e-05,2]
[423469257,1780148938000,-5000.0,5.952e-05,2]
[423469256,1780148938000,-5000.0,5.952e-05,2]
[423469259,1780148939000,-5000.0,5.952e-05,2]
[423469258,1780148939000,-5000.0,5.952e-05,2]
[423469260,1780148939000,-5000.0,5.952e-05,2]
[423469262,1780148940000,-5000.0,5.952e-05,2]
[423469261,1780148940000,-5000.0,5.952e-05,2]
[423469264,1780148941000,-5000.0,5.952e-05,2]
[423469266,1780148941000,-5000.0,5.952e-05,2]
[423469265,1780148941000,-5000.0,5.952e-05,2]
[423469267,1780148942000,-300.0,5.951e-05,2]
[423469269,1780148942000,-5000.0,5.952e-05,2]
[423469268,1780148942000,-4700.0,5.952e-05,2]
[423469272,1780148943000,-5000.0,5.952e-05,2]
[423469271,1780148943000,-5000.0,5.952e-05,2]
[423469270,1780148943000,-5000.0,5.952e-05,2]
[423469275,1780148944000,-5000.0,5.952e-05,2]
[423469274,1780148944000,-5000.0,5.952e-05,2]
[423469273,1780148944000,-5000.0,5.952e-05,2]
[423469278,1780148945000,-5000.0,5.952e-05,2]
[423469277,1780148945000,-5000.0,5.952e-05,2]
[423469276,1780148945000,-5000.0,5.952e-05,2]
[423469279,1780148946000,-5000.0,5.952e-05,2]
[423469280,1780148946000,-5000.0,5.952e-05,2]
[423469283,1780148947000,-5000.0,5.952e-05,2]
[423469282,1780148947000,-5000.0,5.952e-05,2]
[423469281,1780148947000,-5000.0,5.952e-05,2]
[423469286,1780148948000,-5000.0,5.952e-05,2]
[423469285,1780148948000,-5000.0,5.952e-05,2]
[423469284,1780148948000,-5000.0,5.952e-05,2]
[423469289,1780148949000,-5000.0,5.952e-05,2]
[423469288,1780148949000,-5000.0,5.952e-05,2]
[423469287,1780148949000,-5000.0,5.952e-05,2]
[423469291,1780148950000,-5000.0,5.952e-05,2]
[423469290,1780148950000,-5000.0,5.952e-05,2]
[423469292,1780148951000,-5000.0,5.952e-05,2]
[423469294,1780148951000,-5000.0,5.952e-05,2]
[423469293,1780148951000,-5000.0,5.952e-05,2]
[423469297,1780148952000,-5000.0,5.952e-05,2]
[423469296,1780148952000,-5000.0,5.952e-05,2]
[423469295,1780148952000,-5000.0,5.952e-05,2]
[423469299,1780148953000,-5000.0,5.952e-05,2]
[423469298,1780148953000,-5000.0,5.952e-05,2]
[423469301,1780148954000,-5000.0,5.952e-05,2]
[423469300,1780148954000,-5000.0,5.952e-05,2]
[423469303,1780148954000,-4767.96965711,5.952e-05,2]
[423469302,1780148954000,-232.03034289,5.951e-05,2]
[423469304,1780148955000,-5000.0,5.952e-05,2]
[423469305,1780148956000,-5000.0,5.952e-05,2]
[423469306,1780148958000,-5000.0,5.952e-05,2]
[423469307,1780148959000,-5000.0,5.952e-05,2]
[423469308,1780148964000,-2291.0,5.952e-05,2]
[423469315,1780149032000,-2126.4,5.852e-05,2]
[423469760,1780149041000,-1200.0,5.951e-05,2]
[423469758,1780149041000,-300.0,5.951e-05,2]
[423469762,1780149041000,-2937.6620224,5.952e-05,2]
[423469756,1780149041000,-2280.8390746,5.852e-05,2]
[423469771,1780149041000,-981.08142789,5.952e-05,2]
[423469768,1780149041000,-16488.06476509,5.952e-05,2]
[423469764,1780149041000,-337.30774106,5.952e-05,2]
[423469783,1780149041000,-0.00080221,5.952e-05,2]
[423469766,1780149041000,-1197.10362736,5.952e-05,2]
[423470103,1780149043000,-2188.19,5.952e-05,2]
[423470105,1780149043000,-11021.32172689,5.952e-05,2]
[423470135,1780149044000,-15592.63570983,5.952e-05,2]
[423470133,1780149044000,-36500.0,5.952e-05,2]
[423470122,1780149044000,-3542.28934698,5.952e-05,2]
[423470120,1780149044000,-657.5484785,5.952e-05,2]
[423470118,1780149044000,-2408.86898391,5.952e-05,2]
[423470258,1780149378000,-417.0,5.751e-05,2]
[423470256,1780149378000,-300.0,5.75e-05,2]
[423470259,1780149378000,-300.0,5.751e-05,2]
[423470257,1780149378000,-522.17365716,5.751e-05,2]
[423470263,1780149379000,-26623.92634284,5.752e-05,2]
[423470261,1780149379000,-300.0,5.751e-05,2]
[423470262,1780149379000,-1200.0,5.751e-05,2]
[423470260,1780149379000,-300.0,5.751e-05,2]
[423470265,1780149448000,-300.0,5.751e-05,2]
[423470266,1780149511000,-162.79,5.75e-05,2]
[423470267,1780149544000,-162.75850261,5.65e-05,2]
[423470268,1780149544000,-125.72949739,5.749e-05,2]
[423470273,1780149614000,-511.512,5.749e-05,2]
[423470277,1780149679000,-200.0,5.749e-05,2]
[423470276,1780149679000,-300.0,5.748e-05,2]
[423470278,1780149724000,-300.0,5.748e-05,2]
[423470279,1780149724000,-488.488,5.749e-05,2]
[423470283,1780149724000,-187.66607297,5.749e-05,2]
[423470281,1780149724000,-501.88549493,5.749e-05,2]
[423470282,1780149724000,-500.0,5.749e-05,2]
[423470280,1780149724000,-521.9604321,5.749e-05,2]
[423470287,1780149801000,-152.0,5.651e-05,2]
[423470288,1780149873000,-159.969,5.651e-05,2]
[423470293,1780149908000,-168.73,5.651e-05,2]
[423470291,1780149908000,-500.0,5.651e-05,2]
[423470292,1780149908000,-500.0,5.651e-05,2]
[423470290,1780149908000,-1200.0,5.65e-05,2]
[423470289,1780149908000,-300.0,5.65e-05,2]
[423470297,1780149963000,-92.646,5.651e-05,2]
[423470296,1780149963000,-182.0,5.65e-05,2]
[423470340,1780150232000,-1200.0,5.651e-05,2]
[423470342,1780150232000,-511.52122346,5.651e-05,2]
[423470344,1780150232000,-42316.41496013,5.652e-05,2]
[423470383,1780150238000,-6596.00338006,5.652e-05,2]
[423470531,1780150240000,-23623.95552117,5.652e-05,2]
[423470529,1780150240000,-46973.12310367,5.652e-05,2]
[423470527,1780150240000,-1600.67691427,5.652e-05,2]
[423470525,1780150240000,-58007.05524277,5.652e-05,2]
[423470678,1780150241000,-620.73702623,5.652e-05,2]
[423470675,1780150241000,-5296.7571945,5.652e-05,2]
[423470782,1780150242000,-7632.1320765,5.652e-05,2]
[423470784,1780150242000,-408.87603072,5.652e-05,2]
[423470780,1780150242000,-14670.69999999,5.652e-05,2]
[423470778,1780150242000,-285.05594902,5.652e-05,2]
[423470787,1780150242000,-1917.85952668,5.652e-05,2]
[423471152,1780150246000,-97107.2218318,5.652e-05,2]
[423471151,1780150246000,-40050.00000001,5.652e-05,2]
[423471150,1780150246000,-382.74849313,5.652e-05,2]
[423471149,1780150246000,-1990.36528009,5.652e-05,2]
[423471153,1780150247000,-22329.96805908,5.652e-05,2]
[423471157,1780150703000,17499.99999991,5.352e-05,10]
[423471188,1780151352000,-174.48607695,5.251e-05,2]
[423471214,1780151431000,-529.46657918,5.351e-05,2]
[423471205,1780151431000,-202.98816336,5.251e-05,2]
[423471208,1780151431000,-461.53342082,5.351e-05,2]
[423471216,1780151431000,-102.40606148,5.351e-05,2]
[423471220,1780151431000,-183.42014957,5.352e-05,10]
[423471218,1780151431000,-411.12473751,5.351e-05,2]
[423471289,1780151440000,-7000.04592,5.352e-05,10]
[423471760,1780151446000,-603.11298001,5.352e-05,10]
[423471749,1780151446000,-741.81299024,5.352e-05,10]
[423471764,1780151472000,-3934.67104327,5.352e-05,10]
[423471765,1780151489000,-159.969054,5.718e-05,2]
[423471772,1780152407000,-171.81784562,5.519e-05,2]
[423471771,1780152407000,-178.0470173,5.227e-05,2]
[423471826,1780152631000,-503.3638261,5.556e-05,2]
[423471830,1780152631000,-300.0,5.64e-05,2]
[423471828,1780152631000,-159.969054,5.593e-05,2]
[423471840,1780152632000,-2108.08592362,5.641e-05,2]
[423471838,1780152632000,-2985.59937891,5.641e-05,2]
[423471836,1780152632000,-1694.1408138,5.641e-05,2]
[423471834,1780152632000,-1200.0,5.64e-05,2]
[423471832,1780152632000,-300.0,5.64e-05,2]
[423471894,1780152638000,-2491.17694897,5.641e-05,2]
[423471893,1780152638000,-6649.11879455,5.641e-05,2]
[423471914,1780152641000,-1291.23463595,5.641e-05,2]
[423471913,1780152641000,-2467.45075736,5.641e-05,2]
[423471916,1780152641000,-808.03,5.641e-05,2]
[423471915,1780152641000,-8034.79915667,5.641e-05,2]
[423471942,1780152643000,-352280.25235676,6.118e-05,2]
[423471945,1780152643000,-2205.0,6.299e-05,2]
[423471944,1780152643000,-1414.0,6.299e-05,2]
[423471943,1780152643000,-235.4880464,6.118e-05,2]
[423471941,1780152643000,-655976.92370253,6.118e-05,2]
[423471939,1780152643000,-1200.0,6.115e-05,2]
[423471933,1780152643000,-32396.21237676,5.641e-05,2]
[423471936,1780152643000,-500.0,5.811e-05,2]
[423471937,1780152643000,-675.28,6.036e-05,2]
[423471935,1780152643000,-152.0,5.717e-05,2]
[423471934,1780152643000,-152.0,5.66e-05,2]
[423471932,1780152643000,-37000.00000001,5.641e-05,2]
[423471947,1780152643000,-743.0,6.299e-05,2]
[423471938,1780152643000,-337.63,6.036e-05,2]
[423471957,1780152643000,-500.0,6.76e-05,2]
[423471940,1780152643000,-4621.32621941,6.118e-05,2]
[423471946,1780152643000,-283.414,6.299e-05,2]
[423471958,1780152643000,-440.10725765,6.76e-05,2]
[423471964,1780152643000,-3002.68376163,6.849e-05,2]
[423471963,1780152643000,-4691.69337754,6.849e-05,2]
[423471959,1780152643000,-184.69660959,6.818e-05,7]
[423471961,1780152643000,-150.0,6.849e-05,2]
[423471960,1780152643000,-738.78643828,6.818e-05,7]
[423471954,1780152643000,-150.0,6.537e-05,2]
[423471956,1780152643000,-152.0,6.576e-05,7]
[423471962,1780152643000,-6756.03846366,6.849e-05,2]
[423471955,1780152643000,-1023.32608981,6.556e-05,2]
[423471952,1780152643000,-226.91,6.35e-05,2]
[423471948,1780152643000,-443.0,6.299e-05,2]
[423471953,1780152643000,-150.0,6.537e-05,2]
[423471950,1780152643000,-795.0,6.3e-05,2]
[423471951,1780152643000,-675.28,6.338e-05,2]
[423471949,1780152643000,-185.0,6.299e-05,2]
[423471993,1780152644000,-1391.40290492,6.852e-05,7]
[423472006,1780152644000,-500.0,7.045e-05,2]
[423472004,1780152644000,-4671.9537558,7.045e-05,2]
[423472000,1780152644000,-825.63837816,6.997e-05,7]
[423472002,1780152644000,-201.25059129,6.999e-05,7]
[423472003,1780152644000,-543.43465503,7e-05,7]
[423471998,1780152644000,-211.40649027,6.899e-05,2]
[423471999,1780152644000,-3322.47516491,6.904e-05,2]
[423472008,1780152644000,-784.42561977,7.051e-05,7]
[423471997,1780152644000,-845.62596109,6.899e-05,2]
[423472005,1780152644000,-500.0,7.045e-05,2]
[423472001,1780152644000,-1384.02993667,6.999e-05,7]
[423472007,1780152644000,-532.76132779,7.045e-05,2]
[423472010,1780152644000,-297.42582586,7.062e-05,2]
[423472009,1780152644000,-724.25974921,7.052e-05,2]
[423472014,1780152644000,-1391.39767618,7.09e-05,5]
[423472012,1780152644000,-1203.0502014,7.09e-05,5]
[423472018,1780152644000,-602.00207186,7.119e-05,2]
[423472016,1780152644000,-152.0,7.09e-05,30]
[423472013,1780152644000,-970.31393298,7.09e-05,5]
[423472020,1780152644000,-817.78285961,7.122e-05,5]
[423472017,1780152644000,-1083.60372935,7.119e-05,2]
[423472021,1780152644000,-1725.90220681,7.171e-05,5]
[423472019,1780152644000,-431.4755517,7.122e-05,5]
[423472031,1780152644000,-600.0,7.974e-05,2]
[423472033,1780152644000,-1431.0,8e-05,2]
[423471994,1780152644000,-8028.558179,6.852e-05,7]
[423472011,1780152644000,-199.37871594,7.062e-05,2]
[423471990,1780152644000,-279.33179163,6.849e-05,2]
[423471968,1780152644000,-871.62019785,6.849e-05,2]
[423471987,1780152644000,-388.26064658,6.849e-05,2]
[423471970,1780152644000,-2918.14835024,6.849e-05,2]
[423471966,1780152644000,-750.67094041,6.849e-05,2]
[423471971,1780152644000,-1641.45844701,6.849e-05,2]
[423471965,1780152644000,-1689.00961592,6.849e-05,2]
[423471967,1780152644000,-187.6677351,6.849e-05,2]
[423472025,1780152644000,-500.0,7.3e-05,2]
[423471969,1780152644000,-3687.9865994,6.849e-05,2]
[423471973,1780152644000,-182.38427189,6.849e-05,2]
[423471983,1780152644000,-841.14503515,6.849e-05,2]
[423471982,1780152644000,-1892.5763291,6.849e-05,2]
[423471972,1780152644000,-729.53708756,6.849e-05,2]
[423471981,1780152644000,-412.84092734,6.849e-05,2]
[423471974,1780152644000,-166.5151648,6.849e-05,2]
[423471979,1780152644000,-454.70710588,6.849e-05,2]
[423471976,1780152644000,-329.40127232,6.849e-05,2]
[423471980,1780152644000,-743.11366921,6.849e-05,2]
[423471975,1780152644000,-184.52824957,6.849e-05,2]
[423471978,1780152644000,-392.16775053,6.849e-05,2]
[423471977,1780152644000,-349.61954905,6.849e-05,2]
[423471985,1780152644000,-275.19788063,6.849e-05,2]
[423471995,1780152644000,-4715.81356188,6.852e-05,7]
[423471996,1780152644000,-1902.65841246,6.899e-05,2]
[423471989,1780152644000,-627.22778264,6.849e-05,2]
[423471984,1780152644000,-210.28625879,6.849e-05,2]
[423471986,1780152644000,-152.88771146,6.849e-05,2]
[423471992,1780152644000,-608.02055607,6.852e-05,7]
[423471991,1780152644000,-152.15729631,6.852e-05,7]
[423471988,1780152644000,-1129.01000874,6.849e-05,2]
[423472023,1780152644000,-3879.39668536,7.198e-05,2]
[423472015,1780152644000,-2621.95388777,7.09e-05,5]
[423472028,1780152644000,-1694.1408138,7.591e-05,2]
[423472054,1780152644000,-364.46014754,8.218e-05,2]
[423472062,1780152644000,-500.0,8.219e-05,2]
[423472061,1780152644000,-290.08892432,8.219e-05,2]
[423472071,1780152644000,-500.0,8.219e-05,2]
[423472063,1780152644000,-602.06,8.219e-05,2]
[423472066,1780152644000,-500.0,8.219e-05,2]
[423472070,1780152644000,-500.0,8.219e-05,2]
[423472069,1780152644000,-500.0,8.219e-05,2]
[423472067,1780152644000,-500.0,8.219e-05,2]
[423472064,1780152644000,-500.0,8.219e-05,2]
[423472072,1780152644000,-500.0,8.219e-05,2]
[423472068,1780152644000,-630.93610363,8.219e-05,2]
[423472065,1780152644000,-505.14,8.219e-05,2]
[423472050,1780152644000,-500.0,8.218e-05,2]
[423472074,1780152644000,-506.44,8.219e-05,2]
[423472078,1780152644000,-500.70052025,8.219e-05,2]
[423472081,1780152644000,-500.0,8.219e-05,2]
[423472076,1780152644000,-500.55329386,8.219e-05,2]
[423472080,1780152644000,-283.34715702,8.219e-05,2]
[423472075,1780152644000,-235.13414493,8.219e-05,2]
[423472073,1780152644000,-500.0,8.219e-05,2]
[423472077,1780152644000,-500.59604064,8.219e-05,2]
[423472079,1780152644000,-395.08570767,8.219e-05,2]
[423472082,1780152644000,-526.86898462,8.219e-05,2]
[423472085,1780152644000,-500.0,8.219e-05,2]
[423472084,1780152644000,-249.64966195,8.219e-05,2]
[423472086,1780152644000,-500.0,8.219e-05,2]
[423472034,1780152644000,-1431.02,8e-05,2]
[423472083,1780152644000,-500.0,8.219e-05,2]
[423472056,1780152644000,-1384.1673,8.219e-05,2]
[423472087,1780152644000,-500.0,8.219e-05,2]
[423472053,1780152644000,-500.0,8.218e-05,2]
[423472049,1780152644000,-500.0,8.218e-05,2]
[423472030,1780152644000,-505.26279879,7.856e-05,2]
[423472032,1780152644000,-500.0,8e-05,2]
[423472024,1780152644000,-3267.86030702,7.198e-05,2]
[423472022,1780152644000,-1618.35671248,7.172e-05,5]
[423472029,1780152644000,-33053.3593246,7.6e-05,2]
[423472027,1780152644000,-593.9693148,7.556e-05,2]
[423472035,1780152644000,-1431.0,8e-05,2]
[423472036,1780152644000,-1431.0,8e-05,2]
[423472046,1780152644000,-500.0,8.218e-05,2]
[423472037,1780152644000,-5000.0,8e-05,2]
[423472038,1780152644000,-5000.0,8e-05,2]
[423472042,1780152644000,-500.0,8.218e-05,2]
[423472039,1780152644000,-442.87858153,8e-05,2]
[423472026,1780152644000,-500.0,7.308e-05,2]
[423472041,1780152644000,-500.0,8.218e-05,2]
[423472044,1780152644000,-500.0,8.218e-05,2]
[423472057,1780152644000,-189.8702946,8.219e-05,2]
[423472059,1780152644000,-500.0,8.219e-05,2]
[423472051,1780152644000,-500.0,8.218e-05,2]
[423472058,1780152644000,-500.0,8.219e-05,2]
[423472060,1780152644000,-500.0,8.219e-05,2]
[423472052,1780152644000,-500.0,8.218e-05,2]
[423472055,1780152644000,-3593.26,8.219e-05,2]
[423472048,1780152644000,-500.0,8.218e-05,2]
[423472043,1780152644000,-500.0,8.218e-05,2]
[423472047,1780152644000,-500.0,8.218e-05,2]
[423472045,1780152644000,-500.0,8.218e-05,2]
[423472040,1780152644000,-5000.0,8e-05,2]
[423472124,1780152645000,-500.0,8.219e-05,2]
[423472126,1780152645000,-500.0,8.219e-05,2]
[423472127,1780152645000,-500.0,8.219e-05,2]
[423472129,1780152645000,-500.0,8.219e-05,2]
[423472136,1780152645000,-500.0,8.219e-05,2]
[423472117,1780152645000,-164.12334471,8.219e-05,2]
[423472135,1780152645000,-500.0,8.219e-05,2]
[423472125,1780152645000,-500.0,8.219e-05,2]
[423472119,1780152645000,-501.02317987,8.219e-05,2]
[423472120,1780152645000,-500.0,8.219e-05,2]
[423472116,1780152645000,-151.5,8.219e-05,2]
[423472137,1780152645000,-247.62007405,8.219e-05,2]
[423472128,1780152645000,-500.0,8.219e-05,2]
[423472143,1780152645000,-490.0,8.219e-05,2]
[423472134,1780152645000,-500.0,8.219e-05,2]
[423472131,1780152645000,-500.0,8.219e-05,2]
[423472133,1780152645000,-500.0,8.219e-05,2]
[423472132,1780152645000,-211.35,8.219e-05,2]
[423472138,1780152645000,-500.0,8.219e-05,2]
[423472140,1780152645000,-500.0,8.219e-05,2]
[423472142,1780152645000,-500.0,8.219e-05,2]
[423472141,1780152645000,-531.06,8.219e-05,2]
[423472149,1780152645000,-500.0,8.219e-05,2]
[423472147,1780152645000,-500.0,8.219e-05,2]
[423472144,1780152645000,-500.0,8.219e-05,2]
[423472139,1780152645000,-168.61742672,8.219e-05,2]
[423472122,1780152645000,-501.88424725,8.219e-05,2]
[423472146,1780152645000,-500.0,8.219e-05,2]
[423472130,1780152645000,-500.0,8.219e-05,2]
[423472114,1780152645000,-500.0,8.219e-05,2]
[423472100,1780152645000,-500.0,8.219e-05,2]
[423472113,1780152645000,-500.0,8.219e-05,2]
[423472148,1780152645000,-500.0,8.219e-05,2]
[423472095,1780152645000,-625.86908226,8.219e-05,2]
[423472096,1780152645000,-500.0,8.219e-05,2]
[423472094,1780152645000,-592.4,8.219e-05,2]
[423472097,1780152645000,-500.38990564,8.219e-05,2]
[423472089,1780152645000,-292.2066766,8.219e-05,2]
[423472092,1780152645000,-500.0,8.219e-05,2]
[423472088,1780152645000,-500.0,8.219e-05,2]
[423472090,1780152645000,-500.0,8.219e-05,2]
[423472091,1780152645000,-479.0,8.219e-05,2]
[423472093,1780152645000,-500.0,8.219e-05,2]
[423472099,1780152645000,-500.0,8.219e-05,2]
[423472098,1780152645000,-500.0,8.219e-05,2]
[423472115,1780152645000,-614.25014527,8.219e-05,2]
[423472104,1780152645000,-500.0,8.219e-05,2]
[423472103,1780152645000,-500.0,8.219e-05,2]
[423472105,1780152645000,-352.07707965,8.219e-05,2]
[423472101,1780152645000,-500.0,8.219e-05,2]
[423472108,1780152645000,-253.6539694,8.219e-05,2]
[423472109,1780152645000,-500.0,8.219e-05,2]
[423472106,1780152645000,-502.20032893,8.219e-05,2]
[423472107,1780152645000,-560.52730279,8.219e-05,2]
[423472110,1780152645000,-500.0,8.219e-05,2]
[423472118,1780152645000,-500.0,8.219e-05,2]
[423472123,1780152645000,-500.0,8.219e-05,2]
[423472121,1780152645000,-525.91736994,8.219e-05,2]
[423472112,1780152645000,-500.0,8.219e-05,2]
[423472111,1780152645000,-500.0,8.219e-05,2]
[423472102,1780152645000,-1297.23,8.219e-05,2]
[423472145,1780152645000,-500.0,8.219e-05,2]
[423472204,1780152645000,-901.47,8.219e-05,2]
[423472150,1780152645000,-500.0,8.219e-05,2]
[423472185,1780152645000,-500.0,8.219e-05,2]
[423472197,1780152645000,-3288.26,8.219e-05,2]
[423472195,1780152645000,-500.0,8.219e-05,2]
[423472196,1780152645000,-500.0,8.219e-05,2]
[423472184,1780152645000,-500.61960217,8.219e-05,2]
[423472186,1780152645000,-1167.91,8.219e-05,2]
[423472193,1780152645000,-782.32,8.219e-05,2]
[423472194,1780152645000,-500.0,8.219e-05,2]
[423472187,1780152645000,-500.0,8.219e-05,2]
[423472192,1780152645000,-941.26,8.219e-05,2]
[423472191,1780152645000,-500.4864851,8.219e-05,2]
[423472188,1780152645000,-500.0,8.219e-05,2]
[423472189,1780152645000,-500.0,8.219e-05,2]
[423472179,1780152645000,-519.43,8.219e-05,2]
[423472198,1780152645000,-500.0,8.219e-05,2]
[423472202,1780152645000,-3470.35,8.219e-05,2]
[423472200,1780152645000,-500.0,8.219e-05,2]
[423472210,1780152645000,-439.69892671,8.219e-05,2]
[423472205,1780152645000,-500.0,8.219e-05,2]
[423472203,1780152645000,-500.0,8.219e-05,2]
[423472201,1780152645000,-575.05,8.219e-05,2]
[423472199,1780152645000,-1099.96,8.219e-05,2]
[423472208,1780152645000,-745.67,8.219e-05,2]
[423472209,1780152645000,-552.66624257,8.219e-05,2]
[423472207,1780152645000,-500.0,8.219e-05,2]
[423472212,1780152645000,-530.74519802,8.219e-05,2]
[423472151,1780152645000,-623.53674622,8.219e-05,2]
[423472213,1780152645000,-16921.28,8.219e-05,2]
[423472206,1780152645000,-2319.21,8.219e-05,2]
[423472181,1780152645000,-500.57495586,8.219e-05,2]
[423472211,1780152645000,-2176.34,8.219e-05,2]
[423472180,1780152645000,-500.0,8.219e-05,2]
[423472178,1780152645000,-1360.16,8.219e-05,2]
[423472156,1780152645000,-505.00000006,8.219e-05,2]
[423472159,1780152645000,-500.0,8.219e-05,2]
[423472158,1780152645000,-500.0,8.219e-05,2]
[423472155,1780152645000,-1886.92,8.219e-05,2]
[423472153,1780152645000,-500.0,8.219e-05,2]
[423472154,1780152645000,-500.0,8.219e-05,2]
[423472157,1780152645000,-500.0,8.219e-05,2]
[423472161,1780152645000,-500.0,8.219e-05,2]
[423472160,1780152645000,-500.0,8.219e-05,2]
[423472171,1780152645000,-500.37325397,8.219e-05,2]
[423472164,1780152645000,-500.0,8.219e-05,2]
[423472169,1780152645000,-500.42768074,8.219e-05,2]
[423472170,1780152645000,-500.53865918,8.219e-05,2]
[423472152,1780152645000,-500.0,8.219e-05,2]
[423472163,1780152645000,-1036.26,8.219e-05,2]
[423472175,1780152645000,-500.53867313,8.219e-05,2]
[423472177,1780152645000,-500.0,8.219e-05,2]
[423472176,1780152645000,-1963.87,8.219e-05,2]
[423472183,1780152645000,-500.39662144,8.219e-05,2]
[423472173,1780152645000,-1032.93,8.219e-05,2]
[423472167,1780152645000,-500.0,8.219e-05,2]
[423472174,1780152645000,-500.0,8.219e-05,2]
[423472172,1780152645000,-500.0,8.219e-05,2]
[423472165,1780152645000,-500.0,8.219e-05,2]
[423472162,1780152645000,-500.0,8.219e-05,2]
[423472168,1780152645000,-500.0,8.219e-05,2]
[423472166,1780152645000,-500.0,8.219e-05,2]
[423472182,1780152645000,-500.0,8.219e-05,2]
[423472255,1780152646000,-151.5,8.219e-05,2]
[423472260,1780152646000,-151.5,8.219e-05,2]
[423472265,1780152646000,-500.0,8.219e-05,2]
[423472256,1780152646000,-151.5,8.219e-05,2]
[423472246,1780152646000,-500.0,8.219e-05,2]
[423472250,1780152646000,-500.0,8.219e-05,2]
[423472249,1780152646000,-500.0,8.219e-05,2]
[423472240,1780152646000,-500.0,8.219e-05,2]
[423472244,1780152646000,-500.0,8.219e-05,2]
[423472245,1780152646000,-500.0,8.219e-05,2]
[423472262,1780152646000,-1356.03,8.219e-05,2]
[423472257,1780152646000,-301.86580179,8.219e-05,2]
[423472267,1780152646000,-633.71,8.219e-05,2]
[423472258,1780152646000,-500.0,8.219e-05,2]
[423472264,1780152646000,-946.66,8.219e-05,2]
[423472253,1780152646000,-500.0,8.219e-05,2]
[423472259,1780152646000,-151.5,8.219e-05,2]
[423472261,1780152646000,-202.24537253,8.219e-05,2]
[423472277,1780152646000,-247.36540912,8.493e-05,2]
[423472266,1780152646000,-500.0,8.219e-05,2]
[423472269,1780152646000,-500.0,8.219e-05,2]
[423472271,1780152646000,-577.91,8.219e-05,2]
[423472268,1780152646000,-298.17825759,8.219e-05,2]
[423472270,1780152646000,-603.57,8.219e-05,2]
[423472243,1780152646000,-500.0,8.219e-05,2]
[423472274,1780152646000,-267.6823,8.356e-05,2]
[423472254,1780152646000,-341.32993513,8.219e-05,2]
[423472248,1780152646000,-500.0,8.219e-05,2]
[423472224,1780152646000,-312.4688432,8.219e-05,2]
[423472242,1780152646000,-502.05069914,8.219e-05,2]
[423472275,1780152646000,-3593.26,8.493e-05,2]
[423472223,1780152646000,-500.0,8.219e-05,2]
[423472222,1780152646000,-500.0,8.219e-05,2]
[423472215,1780152646000,-1030.19,8.219e-05,2]
[423472214,1780152646000,-956.78,8.219e-05,2]
[423472216,1780152646000,-1293.86,8.219e-05,2]
[423472217,1780152646000,-3214.58,8.219e-05,2]
[423472221,1780152646000,-500.0,8.219e-05,2]
[423472219,1780152646000,-500.0,8.219e-05,2]